[Event "1st Spring Festival Weekend 2021"]
[Site "Bassano del Grappa"]
[Date "2021.03.13"]
[Round "3.2"]
[White "Shetty, Atulya"]
[Black "Plat, Vojtech"]
[Result "1/2-1/2"]
[ECO "A26"]
[WhiteElo "2447"]
[BlackElo "2555"]
[Annotator "ChessBase"]
[PlyCount "85"]
[EventDate "2021.03.12"]
[EventType "swiss"]
[EventCountry "ITA"]
[SourceTitle "playchess.com"]
[Source "ChessBase"]
[SourceQuality "1"]
[TimeControl "5400+30"]

1. c4 {[%emt 0:00:00]} g6 {[%emt 0:04:21]} 2. g3 {[%emt 0:00:00]} Bg7 {[%emt 0:00:09]} 3. Bg2 {[%emt 0:00:00]} e5 {[%emt 0:00:30]} 4. Nc3 {[%emt 0:00:27]} Ne7 {[%emt 0:00:00]} 5. d3 {[%emt 0:02:13]} Nbc6 {[%emt 0:00:15]} 6. h4 {[%emt 0:01:40]} h6 {[%emt 0:00:23]} 7. e4 {[%emt 0:01:22]} d6 {[%emt 0:00:33]} 8. h5 {[%emt 0:01:00]} g5 {[%emt 0:00:06]} 9. f4 {[%emt 1:27:48]} exf4 10. gxf4 {[%emt 0:00:00]} gxf4 {[%emt 0:01:47]} 11. Bxf4 {[%emt 0:00:00]} Nd4 {[%emt 0:02:11]} 12. Qd2 {[%emt 0:00:00]} Bg4 {[%emt 0:02:00]} 13. Nce2 {[%emt 0:00:00]} Nec6 {[%emt 0:02:15]} 14. O-O-O {[%emt 0:00:00]} Qd7 {[%emt 0:05:06]} 15. Rf1 {[%emt 0:00:00]} a5 {[%emt 0:03:31]} 16. Nxd4 {[%emt 0:00:00]} Nxd4 {[%emt 0:00:12]} 17. Nf3 {[%emt 0:00:00]} Bxf3 {[%emt 0:04:47]} 18. Bxf3 {[%emt 0:00:00]} a4 {[%emt 0:00:05]} 19. Qg2 {[%emt 0:00:00]} Ne6 {[%emt 0:12:38]} 20. Bg4 {[%emt 0:00:00]} a3 {[%emt 0:03:53]} 21. b3 {[%emt 0:00:00]} Bd4 {[%emt 0:00:12]} 22. Bxh6 {[%emt 0:00:00]} O-O-O {[%emt 0:00:25]} 23. Bd2 {[%emt 0:00:00]} Kb8 {[%emt 0:01:39]} 24. h6 {[%emt 0:00:00]} Qc6 {[%emt 0:01:07]} 25. Bxe6 {[%emt 0:00:00]} fxe6 {[%emt 0:00:01]} 26. h7 {[%emt 0:00:00]} b5 {[%emt 0:02:07]} 27. Bg5 {[%emt 0:00:00]} bxc4 {[%emt 0:01:19]} 28. dxc4 {[%emt 0:00:00]} Rde8 {[%emt 0:01:37]} 29. Rf7 {[%emt 0:00:00]} Be5 {[%emt 0:06:08]} 30. Qf3 {[%emt 0:02:40]} Qc5 {[%emt 0:02:37]} 31. Be3 {[%emt 0:00:25]} Bd4 {[%emt 0:02:47]} 32. Bd2 {[%emt 0:00:11]} Be5 {[%emt 0:03:22]} 33. Qe3 {[%emt 0:01:56]} Qc6 {[%emt 0:00:13]} 34. Qd3 {[%emt 0:01:24]} Kb7 {[%emt 0:00:59]} 35. Kc2 {[%emt 0:01:02]} Rd8 {[%emt 0:00:10]} 36. Bc3 {[%emt 0:01:31]} Bxc3 {[%emt 0:01:56]} 37. Kxc3 {[%emt 0:00:10]} Rd7 {[%emt 0:05:40]} 38. Rxd7 {[%emt 0:01:11]} Qxd7 {[%emt 0:00:04]} 39. c5 {[%emt 0:01:38]} Qg7+ {[%emt 0:01:14]} 40. Qd4 {[%emt 0:01:10]} Qg2 {[%emt 0:00:13]} 41. Kb4 {[%emt 0:00:50]} Qxh1 {[%emt 0:11:08]} 42. Qxh8 {[%emt 0:00:32]} Qe1+ {[%emt 0:00:04]} 43. Kxa3 {[%emt 0:01:28]} 1/2-1/2

[Event "1st Spring Festival Weekend 2021"]
[Site "Bassano del Grappa"]
[Date "2021.03.13"]
[Round "3.3"]
[White "Checa, Nicolas"]
[Black "Lumachi, Gabriele"]
[Result "1-0"]
[ECO "D35"]
[WhiteElo "2546"]
[BlackElo "2316"]
[Annotator "RC"]
[PlyCount "73"]
[EventDate "2021.03.12"]
[EventType "swiss"]
[EventCountry "ITA"]
[SourceTitle "playchess.com"]
[Source "ChessBase"]
[SourceQuality "1"]
[TimeControl "5400+30"]

1. c4 {[%emt 0:03:50]} e6 {[%emt 0:00:00]} 2. Nc3 {[%emt 0:00:36]} d5 {[%emt 0:00:00]} 3. d4 {[%emt 0:00:10]} Nf6 {[%emt 0:00:00]} 4. cxd5 {[%emt 0:00:08]} exd5 {[%emt 0:00:00]} 5. Bg5 {[%emt 0:00:05]} c6 {[%emt 0:00:06]} 6. e3 {[%emt 0:00:05]} h6 {[%emt 0:00:13]} 7. Bh4 {[%emt 0:01:10]} Be7 {[%emt 0:00:09]} 8. Bd3 {[%emt 0:00:14]} O-O {[%emt 0:00:12]} 9. Nge2 {[%emt 0:03:09]} Re8 {[%emt 0:02:00]} 10. O-O {[%emt 0:01:53]} Nbd7 {[%emt 0:00:15]} 11. f3 {[%emt 0:02:42]} b5 {[%emt 0:00:45]} 12. Bf2 {[%emt 0:02:49]} b4 {[%emt 0:10:11]} 13. Na4 {[%emt 0:02:25]} c5 {[%emt 0:04:18]} 14. dxc5 {[%emt 0:07:37]} Nxc5 {[%emt 0:00:32]} 15. Nxc5 {[%emt 0:01:30]} Bxc5 {[%emt 0:00:09]} 16. Nd4 {[%emt 0:05:58]} Bd7 {[%emt 0:08:48]} 17. Rc1 {[%emt 0:02:01]} Qb6 {[%emt 0:04:37]} 18. Qd2 {[%emt 0:05:41]} Re7 {[%emt 0:11:01]} 19. Bh4 {[%emt 0:21:08]} Rae8 {[%emt 0:06:42]} 20. Bxf6 {[%emt 0:05:54]} gxf6 {[%emt 0:00:08]} 21. Kh1 {[%emt 0:00:19]} Rxe3 {[%emt 0:00:59]} 22. Bf5 {[%emt 0:07:45]} Ba4 {[%emt 0:07:52]} 23. Bc2 {[%emt 0:02:09]} Bxc2 {[%emt 0:03:48]} 24. Nxc2 {[%emt 0:00:17]} Re2 {[%emt 0:02:44]} 25. Qxd5 {[%emt 0:06:19]} Rd8 {[%emt 0:04:51]} 26. Qf5 {[%emt 0:03:50]} Rdd2 {[%emt 0:04:50]} 27. Nd4 {[%emt 0:02:36]} Rxg2 {[%emt 0:09:29]} 28. Rg1 {[%emt 0:01:19]} Rg5 {[%emt 0:01:16]} 29. Rxg5+ {[%emt 0:01:39]} hxg5 {[%emt 0:03:18]} 30. Nb3 {[%emt 0:00:13]} Be3 {[%emt 0:02:18]} 31. Nxd2 {[%emt 0:01:04]} Bxd2 {[%emt 0:00:16]} 32. Rc8+ {[%emt 0:03:21]} Kg7 {[%emt 0:00:07]} 33. Qc5 {[%emt 0:00:06]} Qe6 {[%emt 0:06:33]} 34. Qf8+ {[%emt 0:01:20]} Kg6 {[%emt 0:00:06]} 35. Qg8+ {[%emt 0:01:18]} Kf5 {[%emt 0:01:29]} 36. Re8 {[%emt 0:01:06]} Qc6 {[%emt 0:01:07]} 37. Re4 {[%emt 0:00:20]} 1-0

[Event "1st Spring Festival Weekend 2021"]
[Site "Bassano del Grappa"]
[Date "2021.03.13"]
[Round "3.5"]
[White "Basso, Pier Luigi"]
[Black "Yu, Jennifer"]
[Result "1-0"]
[ECO "D10"]
[WhiteElo "2521"]
[BlackElo "2275"]
[Annotator "ChessBase"]
[PlyCount "89"]
[EventDate "2021.03.12"]
[EventType "swiss"]
[EventCountry "ITA"]
[SourceTitle "playchess.com"]
[Source "ChessBase"]
[SourceQuality "1"]
[TimeControl "5400+30"]

1. d4 {[%emt 0:00:00]} d5 {[%emt 0:00:58]} 2. c4 {[%emt 0:00:05]} c6 {[%emt 0:00:19]} 3. cxd5 {[%emt 0:00:31]} cxd5 {[%emt 0:00:08]} 4. Bf4 {[%emt 0:00:08]} Nc6 {[%emt 0:01:36]} 5. e3 {[%emt 0:00:07]} Bf5 {[%emt 0:01:55]} 6. Nc3 {[%emt 0:02:27]} e6 {[%emt 0:00:17]} 7. Bb5 {[%emt 0:09:16]} Rc8 {[%emt 0:03:13]} 8. Nf3 {[%emt 0:01:29]} Bd6 {[%emt 0:01:43]} 9. Bxc6+ {[%emt 0:01:27]} bxc6 {[%emt 0:01:03]} 10. Bxd6 {[%emt 0:00:08]} Qxd6 {[%emt 0:00:04]} 11. O-O {[%emt 0:04:12]} Ne7 {[%emt 0:05:38]} 12. Na4 {[%emt 0:00:51]} Rb8 {[%emt 0:03:00]} 13. Rc1 {[%emt 0:01:56]} O-O {[%emt 0:01:13]} 14. Nh4 {[%emt 0:07:56]} Rfc8 {[%emt 0:05:19]} 15. b3 {[%emt 0:01:39]} e5 {[%emt 0:01:27]} 16. Nxf5 {[%emt 0:01:08]} Nxf5 {[%emt 0:00:09]} 17. dxe5 {[%emt 0:00:05]} Qxe5 {[%emt 0:00:10]} 18. Nc5 {[%emt 0:00:06]} Qe7 {[%emt 0:04:51]} 19. Qg4 {[%emt 0:04:31]} Nd6 {[%emt 0:03:40]} 20. Rc2 {[%emt 0:00:38]} f5 {[%emt 0:33:31]} 21. Qf4 {[%emt 0:03:28]} g5 {[%emt 0:00:02]} 22. Qg3 {[%emt 0:03:24]} Rb4 {[%emt 0:04:53]} 23. Rfc1 {[%emt 0:12:16]} Re8 {[%emt 0:07:58]} 24. h3 {[%emt 0:07:48]} Rh4 {[%emt 0:05:58]} 25. Nd3 {[%emt 0:04:49]} Ne4 {[%emt 0:01:09]} 26. Qf3 {[%emt 0:01:11]} g4 {[%emt 0:04:20]} 27. Qxf5 {[%emt 0:02:32]} Nd6 {[%emt 0:00:04]} 28. Qf4 {[%emt 0:01:54]} gxh3 {[%emt 0:00:03]} 29. Qf3 {[%emt 0:09:33]} hxg2 {[%emt 0:02:32]} 30. Rxc6 {[%emt 0:04:38]} Kh8 {[%emt 0:01:37]} 31. Kxg2 {[%emt 0:01:34]} Ne4 {[%emt 0:03:56]} 32. R1c2 {[%emt 0:08:58]} Qg7+ {[%emt 0:02:02]} 33. Kf1 {[%emt 0:00:36]} Rg8 {[%emt 0:01:00]} 34. Ke2 {[%emt 0:00:19]} Rh2 {[%emt 0:00:38]} 35. Rc8 {[%emt 0:03:07]} Ng3+ {[%emt 0:00:09]} 36. Ke1 {[%emt 0:01:00]} Rh1+ {[%emt 0:00:48]} 37. Kd2 {[%emt 0:00:02]} Ne4+ {[%emt 0:00:15]} 38. Ke2 {[%emt 0:00:04]} Rh2 {[%emt 0:00:30]} 39. Rxg8+ {[%emt 0:00:31]} Qxg8 {[%emt 0:00:03]} 40. Qf4 {[%emt 0:00:45]} Rh5 {[%emt 0:00:59]} 41. Ne5 {[%emt 0:00:20]} Qe8 {[%emt 0:00:48]} 42. Nf7+ {[%emt 0:01:23]} Kg7 {[%emt 0:00:08]} 43. Qg4+ {[%emt 0:00:18]} Kf8 {[%emt 0:00:52]} 44. Qxh5 {[%emt 0:01:07]} Qb5+ {[%emt 0:00:03]} 45. Kf3 {[%emt 0:00:17]} 1-0

[Event "1st Spring Festival Weekend 2021"]
[Site "Bassano del Grappa"]
[Date "2021.03.13"]
[Round "3.6"]
[White "Martin Duque, Jesus"]
[Black "Bardone, Lorenzo"]
[Result "1-0"]
[ECO "B44"]
[WhiteElo "2454"]
[BlackElo "2174"]
[Annotator "ChessBase"]
[PlyCount "135"]
[EventDate "2021.03.12"]
[EventType "swiss"]
[EventCountry "ITA"]
[SourceTitle "playchess.com"]
[Source "ChessBase"]
[SourceQuality "1"]
[TimeControl "5400+30"]

1. e4 {[%emt 0:02:52]} c5 {[%emt 0:01:19]} 2. Nf3 {[%emt 0:00:04]} e6 {[%emt 0:00:06]} 3. d4 {[%emt 0:00:03]} cxd4 {[%emt 0:00:05]} 4. Nxd4 {[%emt 0:00:03]} Nc6 {[%emt 0:00:07]} 5. Bf4 {[%emt 0:00:04]} d6 {[%emt 0:11:40]} 6. Nxc6 {[%emt 0:00:05]} bxc6 {[%emt 0:00:07]} 7. c4 {[%emt 0:00:03]} e5 {[%emt 0:03:08]} 8. Be3 {[%emt 0:00:06]} f5 {[%emt 0:04:16]} 9. exf5 {[%emt 0:02:33]} Bxf5 {[%emt 0:01:09]} 10. Nc3 {[%emt 0:01:34]} Nf6 {[%emt 0:01:37]} 11. Bd3 {[%emt 0:03:36]} Be6 {[%emt 0:03:57]} 12. Qa4 {[%emt 0:03:28]} Qd7 {[%emt 0:02:07]} 13. O-O {[%emt 0:10:48]} Be7 {[%emt 0:03:13]} 14. Ne4 {[%emt 0:16:43]} O-O {[%emt 0:08:50]} 15. Ng5 {[%emt 0:05:32]} Bg4 {[%emt 0:03:18]} 16. h3 {[%emt 0:02:22]} Bh5 {[%emt 0:00:28]} 17. Qc2 {[%emt 0:00:33]} h6 {[%emt 0:09:49]} 18. Bf5 {[%emt 0:00:24]} Qb7 {[%emt 0:00:39]} 19. Ne6 {[%emt 0:01:14]} Rfb8 {[%emt 0:03:29]} 20. b3 {[%emt 0:04:11]} Bf7 {[%emt 0:03:53]} 21. Qc1 {[%emt 0:05:00]} Bf8 {[%emt 0:04:52]} 22. Nxf8 {[%emt 0:03:13]} Kxf8 {[%emt 0:03:56]} 23. Re1 {[%emt 0:02:31]} a5 {[%emt 0:05:55]} 24. c5 {[%emt 0:01:34]} d5 {[%emt 0:04:57]} 25. Bxh6 {[%emt 0:00:17]} Ng8 {[%emt 0:01:25]} 26. Bg5 {[%emt 0:01:41]} Re8 {[%emt 0:00:33]} 27. Qc3 {[%emt 0:02:09]} Qb4 {[%emt 0:02:40]} 28. Qg3 {[%emt 0:02:48]} Qxc5 {[%emt 0:03:46]} 29. Bd7 {[%emt 0:00:21]} d4 {[%emt 0:02:12]} 30. Rac1 {[%emt 0:00:50]} Qd6 {[%emt 0:01:08]} 31. Bxc6 {[%emt 0:00:17]} Bd5 {[%emt 0:02:30]} 32. Bxa8 {[%emt 0:00:39]} Bxa8 {[%emt 0:00:07]} 33. Qg4 {[%emt 0:03:11]} Bb7 {[%emt 0:01:28]} 34. Qf5+ {[%emt 0:04:13]} Nf6 {[%emt 0:00:21]} 35. Bxf6 {[%emt 0:01:46]} gxf6 {[%emt 0:00:04]} 36. Red1 {[%emt 0:00:13]} Re7 {[%emt 0:00:59]} 37. f3 {[%emt 0:03:19]} Rg7 {[%emt 0:00:33]} 38. Kh1 {[%emt 0:01:05]} Rg5 {[%emt 0:01:28]} 39. Qc2 {[%emt 0:01:59]} Qd7 {[%emt 0:02:10]} 40. Kh2 {[%emt 0:02:14]} Rg7 {[%emt 0:02:16]} 41. Qf2 {[%emt 0:03:34]} Qd6 {[%emt 0:01:23]} 42. Kh1 {[%emt 0:00:35]} f5 {[%emt 0:00:06]} 43. Qh4 {[%emt 0:01:00]} Kg8 {[%emt 0:01:25]} 44. Qh5 {[%emt 0:02:13]} e4 {[%emt 0:01:06]} 45. Qxf5 {[%emt 0:01:46]} exf3 {[%emt 0:00:12]} 46. Rc8+ {[%emt 0:00:23]} Bxc8 {[%emt 0:00:43]} 47. Qxc8+ {[%emt 0:00:02]} Kf7 {[%emt 0:01:14]} 48. Qf5+ {[%emt 0:00:34]} Qf6 {[%emt 0:00:15]} 49. Qxf3 {[%emt 0:01:14]} Qxf3 {[%emt 0:00:40]} 50. gxf3 {[%emt 0:00:02]} a4 {[%emt 0:00:34]} 51. Rxd4 {[%emt 0:00:25]} axb3 {[%emt 0:00:40]} 52. axb3 {[%emt 0:00:02]} Rg3 {[%emt 0:00:05]} 53. Rf4+ {[%emt 0:00:05]} Ke6 {[%emt 0:00:05]} 54. Kh2 {[%emt 0:00:05]} Rg8 {[%emt 0:00:03]} 55. b4 {[%emt 0:00:15]} Ke5 {[%emt 0:00:45]} 56. Rg4 {[%emt 0:00:05]} Rc8 {[%emt 0:00:26]} 57. Kg3 {[%emt 0:00:06]} Rc3 {[%emt 0:00:10]} 58. h4 {[%emt 0:00:50]} Kf5 {[%emt 0:00:29]} 59. Rg5+ {[%emt 0:00:11]} Kf6 {[%emt 0:00:05]} 60. Rc5 {[%emt 0:00:07]} Rb3 {[%emt 0:00:14]} 61. b5 {[%emt 0:00:09]} Kg6 {[%emt 0:00:30]} 62. Kg4 {[%emt 0:00:11]} Kg7 {[%emt 0:01:06]} 63. f4 {[%emt 0:00:17]} Rb1 {[%emt 0:00:25]} 64. Kf5 {[%emt 0:00:39]} Rh1 {[%emt 0:00:28]} 65. Rc7+ {[%emt 0:00:26]} Kh6 {[%emt 0:00:06]} 66. b6 {[%emt 0:00:50]} Rb1 {[%emt 0:00:30]} 67. b7 {[%emt 0:00:21]} Rb6 {[%emt 0:00:24]} 68. Rc6+ {[%emt 0:00:58]} 1-0

[Event "1st Spring Festival Weekend 2021"]
[Site "Bassano del Grappa"]
[Date "2021.03.13"]
[Round "3.7"]
[White "Pasin, Mattia"]
[Black "Gallana, Marco"]
[Result "0-1"]
[ECO "D92"]
[WhiteElo "1973"]
[BlackElo "2232"]
[Annotator "NA"]
[PlyCount "46"]
[EventDate "2021.03.12"]
[EventType "swiss"]
[EventCountry "ITA"]
[SourceTitle "playchess.com"]
[Source "ChessBase"]
[SourceQuality "1"]
[TimeControl "5400+30"]

{[%evp 8,27,38,29,3,6,0,-10,-13,-34,-17,32767,33,-94,-104,-243,-227,-300,-297,-576,-676,-854]} 1. d4 {[%emt 0:00:00]} Nf6 {[%emt 0:00:55]} 2. c4 {[%emt 0:00:00]} g6 {[%emt 0:00:07]} 3. Nc3 {[%emt 0:00:00]} d5 {[%emt 0:00:07]} 4. Bf4 {[%emt 0:00:02]} Bg7 {[%emt 0:00:19]} 5. Nf3 {[%emt 0:00:50]} O-O {[%emt 0:00:36]} 6. Rc1 {[%emt 0:00:50]} Be6 {[%emt 0:01:10]} 7. Ng5 {[%emt 0:02:12]} c5 {[%emt 0:04:31]} 8. Nxe6 {[%emt 0:08:11]} fxe6 {[%emt 0:01:20]} 9. e3 {[%emt 0:00:37]} Nc6 {[%emt 0:01:21]} 10. Be5 {[%emt 0:08:57]} (10. dxc5 $11 Ne4 11. cxd5 Bxc3+ 12. bxc3 exd5 13. Be2) 10... cxd4 {[%emt 0:24:55]} 11. Bxd4 {[%emt 0:05:57] [#]} (11. exd4 $17 {was forced.} Ne4 12. Nxe4 dxe4 13. Bxg7 Kxg7 14. d5 Qa5+ 15. Qd2 Qxd2+ 16. Kxd2) 11... e5 $1 {[%emt 0:05:01]} 12. Bc5 {[%emt 0:00:10]} (12. cxd5 $142 exd4 13. dxc6 dxc3 14. Bc4+ Kh8 15. Qxd8 Raxd8 16. Rxc3) 12... d4 {[%emt 0:00:38]} 13. Nd5 $2 {[%emt 0:01:01]} (13. Ba3) 13... Ne4 {[%emt 0:00:36] Double Attack} 14. b4 $19 {[%emt 0:15:01]} Nxf2 {[%emt 0:03:35]} 15. Qd2 {[%emt 0:01:11]} b6 {[%emt 0:01:43]} 16. b5 {[%emt 0:00:54]} bxc5 {[%emt 0:01:17]} 17. bxc6 {[%emt 0:00:06]} Nxh1 {[%emt 0:00:42]} 18. exd4 {[%emt 0:07:15]} e6 {[%emt 0:04:46]} 19. g3 {[%emt 0:02:39]} exd5 {[%emt 0:00:29]} 20. cxd5 {[%emt 0:00:58]} Rxf1+ {[%emt 0:00:24]} 21. Kxf1 {[%emt 0:01:20]} Qxd5 {[%emt 0:00:09]} 22. Rxc5 {[%emt 0:01:30]} Rf8+ {[%emt 0:01:16]} 23. Kg1 {[%emt 0:05:36]} Qf3 {[%emt 0:02:03]} 0-1

[Event "1st Spring Festival Weekend 2021"]
[Site "Bassano del Grappa"]
[Date "2021.03.13"]
[Round "3.8"]
[White "Ghiotto, Marco Luigi"]
[Black "Brotto, Alessandro"]
[Result "1/2-1/2"]
[ECO "C68"]
[WhiteElo "2167"]
[BlackElo "1970"]
[Annotator "NA"]
[PlyCount "116"]
[EventDate "2021.03.12"]
[EventType "swiss"]
[EventCountry "ITA"]
[SourceTitle "playchess.com"]
[Source "ChessBase"]
[SourceQuality "1"]
[TimeControl "5400+30"]

1. e4 {[%emt 0:00:00]} e5 {[%emt 0:00:10]} 2. Nf3 {[%emt 0:00:00]} Nc6 {[%emt 0:00:08]} 3. Bb5 {[%emt 0:00:00]} a6 {[%emt 0:00:11]} 4. Bxc6 {[%emt 0:00:14]} dxc6 {[%emt 0:00:12]} 5. O-O {[%emt 0:00:09]} Bg4 {[%emt 0:01:26]} 6. d3 {[%emt 0:02:53]} Qf6 {[%emt 0:03:25]} 7. Be3 {[%emt 0:01:57]} Bxf3 {[%emt 0:04:42]} 8. Qxf3 {[%emt 0:00:08]} Qxf3 {[%emt 0:01:21]} 9. gxf3 {[%emt 0:00:07]} Nf6 {[%emt 0:02:22]} 10. Nc3 {[%emt 0:03:30]} O-O-O {[%emt 0:04:34]} 11. Ne2 {[%emt 0:04:43]} Nh5 {[%emt 0:02:01]} 12. Kh1 {[%emt 0:11:39]} Bd6 {[%emt 0:10:15]} 13. Rg1 {[%emt 0:05:41]} g6 {[%emt 0:02:10]} 14. Rad1 $15 {[%emt 0:05:03]} Rd7 {[%emt 0:08:21]} 15. Ng3 {[%emt 0:06:45]} Ng7 {[%emt 0:02:14]} 16. Bg5 {[%emt 0:09:19]} f6 {[%emt 0:08:35]} 17. Bxf6 {[%emt 0:02:28]} Rf8 {[%emt 0:02:03]} 18. Bxg7 {[%emt 0:03:25]} Rxg7 {[%emt 0:00:10]} 19. f4 {[%emt 0:04:16]} exf4 {[%emt 0:05:50]} 20. Nf5 {[%emt 0:00:04]} Rgf7 {[%emt 0:01:08]} 21. Nxd6+ {[%emt 0:00:56]} cxd6 {[%emt 0:00:09]} 22. f3 {[%emt 0:00:28]} Re8 {[%emt 0:02:32]} 23. Rg5 {[%emt 0:02:16]} Re5 {[%emt 0:12:08]} 24. Rdg1 {[%emt 0:04:34]} Rfe7 {[%emt 0:02:49]} 25. R1g4 {[%emt 0:02:24]} Kd7 {[%emt 0:04:37]} 26. Kg2 {[%emt 0:01:53]} Rxg5 {[%emt 0:03:56]} 27. Rxg5 {[%emt 0:00:02]} Re5 {[%emt 0:00:26]} 28. h4 {[%emt 0:01:17]} Re6 {[%emt 0:02:52]} 29. h5 {[%emt 0:02:35]} Re5 {[%emt 0:01:54]} 30. Rxe5 {[%emt 0:02:47]} dxe5 {[%emt 0:00:09]} 31. hxg6 {[%emt 0:01:36]} hxg6 {[%emt 0:00:07]} 32. Kh3 {[%emt 0:00:20]} c5 {[%emt 0:03:26]} 33. Kg4 {[%emt 0:01:27]} Ke6 {[%emt 0:00:09]} 34. Kg5 {[%emt 0:00:45]} Kf7 {[%emt 0:00:11]} 35. c3 {[%emt 0:01:31]} b5 {[%emt 0:03:31]} 36. b4 {[%emt 0:00:47]} cxb4 {[%emt 0:00:50]} 37. cxb4 {[%emt 0:00:02]} Kg7 {[%emt 0:00:46]} 38. d4 {[%emt 0:07:42]} exd4 {[%emt 0:00:14]} 39. Kxf4 {[%emt 0:00:05]} Kf6 {[%emt 0:03:11]} 40. Kg3 {[%emt 0:00:57]} Ke5 {[%emt 0:02:58]} 41. Kf2 {[%emt 0:00:20]} g5 {[%emt 0:01:09]} 42. Ke2 {[%emt 0:00:05]} Kd6 {[%emt 0:00:34]} 43. Kd2 {[%emt 0:02:26]} Ke6 {[%emt 0:00:23]} 44. Kc2 {[%emt 0:02:06]} Kd6 {[%emt 0:00:20]} 45. Kd3 {[%emt 0:01:27]} Ke5 {[%emt 0:00:10]} 46. a3 {[%emt 0:00:53]} Kf4 {[%emt 0:00:05]} 47. Kxd4 {[%emt 0:00:26]} Kxf3 {[%emt 0:00:09]} 48. e5 {[%emt 0:00:04]} g4 {[%emt 0:00:08]} 49. e6 {[%emt 0:00:04]} g3 {[%emt 0:00:06]} 50. e7 {[%emt 0:00:04]} g2 {[%emt 0:00:05]} 51. e8=Q {[%emt 0:00:05]} g1=Q+ {[%emt 0:00:11]} 52. Kd5 {[%emt 0:00:39]} Qd1+ {[%emt 0:00:40]} 53. Kc6 {[%emt 0:02:48]} Qc1+ {[%emt 0:00:11]} 54. Kb6 {[%emt 0:01:00]} Qxa3 {[%emt 0:00:52]} 55. Qa8+ {[%emt 0:00:05]} Ke3 {[%emt 0:00:51]} 56. Qxa6 {[%emt 0:00:07]} Qxb4 {[%emt 0:00:10]} 57. Qxb5 {[%emt 0:00:07]} Qxb5+ {[%emt 0:00:10]} 58. Kxb5 {[%emt 0:00:05]} Kd4 {[%emt 0:04:33]} 1/2-1/2

[Event "1st Spring Festival Weekend 2021"]
[Site "Bassano del Grappa"]
[Date "2021.03.13"]
[Round "3.9"]
[White "Cappelletto, Joshuaede"]
[Black "Buzzatti, Francesco"]
[Result "1-0"]
[ECO "B56"]
[WhiteElo "2126"]
[BlackElo "1929"]
[Annotator "NA"]
[PlyCount "117"]
[EventDate "2021.03.12"]
[EventType "swiss"]
[EventCountry "ITA"]
[SourceTitle "playchess.com"]
[Source "ChessBase"]
[SourceQuality "1"]
[TimeControl "5400+30"]

1. e4 {[%emt 0:00:00]} c5 {[%emt 0:08:53]} 2. Nf3 {[%emt 0:00:00]} d6 {[%emt 0:00:15]} 3. d4 {[%emt 0:00:00]} cxd4 {[%emt 0:00:11]} 4. Nxd4 {[%emt 0:00:00]} Nf6 {[%emt 0:00:10]} 5. Nc3 {[%emt 0:00:00]} e5 {[%emt 0:01:46]} 6. Bb5+ {[%emt 0:00:05]} Nbd7 {[%emt 0:03:59]} 7. Nf5 {[%emt 0:00:06]} a6 {[%emt 0:01:45]} 8. Bxd7+ {[%emt 0:00:59]} Qxd7 {[%emt 0:01:52]} 9. Ne3 {[%emt 0:00:48]} b5 {[%emt 0:07:38]} 10. a4 {[%emt 0:06:23]} Bb7 {[%emt 0:07:51]} 11. axb5 {[%emt 0:01:14]} axb5 {[%emt 0:00:57]} 12. Rxa8+ {[%emt 0:00:05]} Bxa8 {[%emt 0:00:09]} 13. Qd3 {[%emt 0:00:37]} Be7 $11 {[%emt 0:12:18]} 14. Ned5 {[%emt 0:18:04]} Bxd5 {[%emt 0:06:14]} 15. Nxd5 {[%emt 0:00:57]} Nxd5 {[%emt 0:01:16]} 16. Qxd5 {[%emt 0:00:06]} O-O {[%emt 0:00:38]} 17. O-O {[%emt 0:00:05]} Rc8 {[%emt 0:01:15]} 18. c3 {[%emt 0:00:04]} Rc5 {[%emt 0:07:26]} 19. Qd3 {[%emt 0:00:20]} Rc8 {[%emt 0:10:01]} 20. Be3 {[%emt 0:00:38]} Ra8 {[%emt 0:00:42]} 21. Qd5 {[%emt 0:00:07]} Qe8 {[%emt 0:00:19]} 22. h3 {[%emt 0:01:49]} g5 {[%emt 0:02:53]} 23. Rd1 {[%emt 0:02:13]} Kg7 {[%emt 0:01:00]} 24. Kh2 {[%emt 0:00:44]} Ra4 {[%emt 0:03:56]} 25. b4 {[%emt 0:01:11]} h5 {[%emt 0:05:49]} 26. Qd2 {[%emt 0:09:56]} Kg6 {[%emt 0:01:49]} 27. Qd5 {[%emt 0:01:58]} Ra3 {[%emt 0:02:53]} 28. Rc1 {[%emt 0:00:18]} Qa8 {[%emt 0:01:38]} 29. Qxb5 {[%emt 0:05:13]} Qxe4 {[%emt 0:00:18]} 30. Qd7 {[%emt 0:00:07]} Bf6 {[%emt 0:01:51]} 31. Qxd6 {[%emt 0:00:11]} g4 {[%emt 0:00:26]} 32. Qd2 {[%emt 0:11:41]} Ra8 {[%emt 0:02:49]} 33. Qc2 {[%emt 0:00:08]} Kf5 {[%emt 0:00:06]} 34. c4 {[%emt 0:05:34]} gxh3 {[%emt 0:00:26]} 35. Kxh3 {[%emt 0:00:16]} Rg8 {[%emt 0:00:23]} 36. b5 {[%emt 0:00:36]} Rg4 {[%emt 0:01:28]} 37. Qxe4+ {[%emt 0:00:04]} Rxe4 {[%emt 0:00:24]} 38. b6 {[%emt 0:00:31]} Bd8 {[%emt 0:01:15]} 39. b7 {[%emt 0:02:24]} Rh4+ {[%emt 0:00:30]} 40. Kg3 {[%emt 0:00:06]} Rg4+ {[%emt 0:00:34]} 41. Kh2 {[%emt 0:00:06]} Bc7 {[%emt 0:00:04]} 42. Bb6 {[%emt 0:02:20]} Bb8 {[%emt 0:00:31]} 43. Rd1 {[%emt 0:03:15]} Rxc4 {[%emt 0:01:45]} 44. Rd7 {[%emt 0:01:10]} e4+ {[%emt 0:00:56]} 45. g3 {[%emt 0:01:27]} f6 {[%emt 0:01:08]} 46. Rd5+ {[%emt 0:01:56]} Kg4 {[%emt 0:00:56]} 47. Rd8 {[%emt 0:00:33]} Be5 {[%emt 0:01:11]} 48. b8=Q {[%emt 0:00:35]} Bxb8 {[%emt 0:00:06]} 49. Rxb8 {[%emt 0:00:04]} Kf3 {[%emt 0:01:17]} 50. Rf8 {[%emt 0:01:40]} Ke2 {[%emt 0:00:31]} 51. Rxf6 {[%emt 0:00:12]} h4 {[%emt 0:00:13]} 52. gxh4 {[%emt 0:00:13]} e3 {[%emt 0:00:06]} 53. Kg3 {[%emt 0:01:03]} exf2 {[%emt 0:00:30]} 54. Rxf2+ {[%emt 0:00:06]} Kd3 {[%emt 0:00:03]} 55. Rf3+ {[%emt 0:00:07]} Ke2 {[%emt 0:00:07]} 56. Re3+ {[%emt 0:00:25]} Kd2 {[%emt 0:00:07]} 57. Re6 {[%emt 0:00:08]} Kd3 {[%emt 0:00:14]} 58. h5 {[%emt 0:00:06]} Re4 {[%emt 0:00:26]} 59. Rxe4 {[%emt 0:00:07]} 1-0